bitfinex-derivatives/quotes_BTCF0:USTF0_20250505
["timestamp","ask_amount","ask_price","bid_price","bid_amount"]
[1746403848465,0.067,94426.0,94423.0,0.5612]
[1746403848665,0.657,94426.0,94423.0,0.5612]
[1746403849253,0.657,94426.0,94423.0,0.3682]
[1746403849254,0.777,94426.0,94423.0,0.3682]
[1746403849766,0.12075302,94424.0,94423.0,0.3682]
[1746403849966,0.80075302,94424.0,94423.0,0.3682]
[1746403850268,0.92075302,94424.0,94423.0,0.3682]
[1746403850861,0.95435302,94424.0,94423.0,0.3692]
[1746403851059,1.02175302,94424.0,94423.0,0.3692]
[1746403852167,0.95435302,94424.0,94423.0,0.3692]
[1746403852468,1.02175302,94424.0,94423.0,0.3692]
[1746403852863,0.0529515,94422.0,94418.0,0.3608]
[1746403853068,0.17,94422.0,94408.0,0.1933]
[1746403853265,0.2118583,94398.0,94397.0,0.36238903]
[1746403853570,0.8588583,94398.0,94397.0,0.35360903]
[1746403854067,0.647,94398.0,94397.0,0.35360903]
[1746403854264,0.9788583,94398.0,94397.0,0.35360903]
[1746403854566,0.767,94398.0,94397.0,0.56546953]
[1746403855267,0.9788583,94398.0,94397.0,0.35360903]
[1746403855664,0.9788583,94398.0,94397.0,0.56546953]
[1746403856369,0.99096248,94398.0,94397.0,0.56546953]
[1746403858178,0.99096248,94398.0,94397.0,0.35360903]
[1746403858682,0.99096248,94398.0,94397.0,0.71910903]
[1746403859367,0.99096248,94398.0,94397.0,0.93096953]
[1746403861668,0.0529633,94401.0,94397.0,0.93096953]
[1746403861880,0.58810432,94401.0,94400.0,0.8472818]
[1746403862066,0.1608987,94408.0,94407.0,0.2118381]
[1746403862266,0.2612987,94408.0,94407.0,1.2080661]
[1746403862568,0.0015,94415.0,94414.0,0.2118223]
[1746403862773,0.6215,94415.0,94414.0,1.2080503]
[1746403863160,0.6215,94415.0,94414.0,1.3280503]
[1746403864268,0.6255,94415.0,94414.0,1.3280503]
[1746403865768,0.63329738,94415.0,94414.0,1.7179503]
[1746403866673,0.63329738,94415.0,94414.0,1.9679503]
[1746403866869,0.05302,94445.0,94444.0,0.2117551]
[1746403867070,0.67116963,94445.0,94444.0,0.5725551]
[1746403867376,0.67116963,94445.0,94444.0,0.98576389]
[1746403868077,0.67116963,94445.0,94444.0,1.36776389]
[1746403869368,0.67616963,94445.0,94444.0,1.36776389]
[1746403872777,0.211724,94458.0,94456.0,0.2117275]
[1746403872966,0.8417237,94458.0,94457.0,0.3935]
[1746403873170,0.75,94458.0,94457.0,0.3935]
[1746403873382,0.75,94458.0,94457.0,0.6052259]
[1746403873673,0.78387379,94458.0,94457.0,0.6052259]
[1746403874377,0.99559749,94458.0,94457.0,0.3935]
[1746403875880,0.78387379,94458.0,94457.0,0.6052259]
[1746403877181,0.79177279,94458.0,94457.0,0.7958259]
[1746403877479,0.79177279,94458.0,94457.0,1.20903469]
[1746403882975,0.06696,94471.0,94462.0,0.2117138]
[1746403883175,0.0529243,94470.0,94464.0,0.3608]
[1746403883481,0.6529243,94470.0,94464.0,0.3608]
[1746403883778,0.2117102,94464.0,94463.0,0.1829]
[1746403883981,0.7917102,94464.0,94463.0,0.1829]
[1746403884176,0.9117102,94464.0,94463.0,0.1829]
[1746403886575,1.0925102,94464.0,94463.0,0.1829]
[1746403888283,1.2057102,94464.0,94463.0,0.1829]
[1746403889477,1.0925102,94464.0,94463.0,0.1829]
[1746403893581,1.2056102,94464.0,94463.0,0.1829]
[1746403894281,1.0925102,94464.0,94463.0,0.1829]
[1746403895582,0.05302,94480.0,94463.0,0.1829]
[1746403895784,0.65605376,94476.0,94464.0,0.1816]
[1746403895989,0.64796,94476.0,94464.0,0.1816]
[1746403896183,0.92892045,94476.0,94465.0,0.1803]
[1746403896385,0.98184145,94476.0,94465.0,0.1803]
[1746403896789,0.0529214,94475.0,94465.0,0.1803]
[1746403896985,0.7229214,94475.0,94465.0,0.1803]
[1746403897186,0.2117057,94466.0,94465.0,0.1803]
[1746403897387,0.8317057,94466.0,94465.0,0.3701]
[1746403898185,0.9517057,94466.0,94465.0,0.3701]
[1746403898699,1.20666,94466.0,94448.0,0.3438]
[1746403898902,0.2117145,94463.0,94458.0,0.1812]
[1746403899085,0.196,94462.0,94459.0,0.1898]
[1746403899398,0.916,94462.0,94459.0,0.1898]
[1746403899693,0.211717,94461.0,94460.0,0.1812]
[1746403899880,0.841717,94461.0,94460.0,0.1812]
[1746403900087,1.161317,94461.0,94460.0,0.1812]
[1746403901794,0.2117192,94460.0,94459.0,0.1898]
[1746403901996,1.0375832,94460.0,94459.0,0.1898]
[1746403902185,1.3571832,94460.0,94459.0,0.1898]
[1746403905701,1.2513192,94460.0,94459.0,0.1898]
[1746403905890,1.3571832,94460.0,94459.0,0.1898]
[1746403906902,0.1198856,94468.0,94459.0,0.1898]
[1746403907100,0.4808,94466.0,94460.0,0.1951]
[1746403907300,1.0608,94466.0,94460.0,0.1951]
[1746403908808,0.1299353,94464.0,94460.0,0.1951]
[1746403908993,0.7099353,94464.0,94461.0,0.1952]
[1746403909192,0.8299353,94464.0,94461.0,0.1952]
[1746403909391,0.8299353,94464.0,94462.0,0.1912]
[1746403910594,0.8299353,94464.0,94463.0,0.23830473]
[1746403913204,0.7,94464.0,94463.0,0.23830473]
[1746403916304,0.7,94464.0,94463.0,0.43440473]
[1746403918601,0.7,94464.0,94463.0,0.64611723]
[1746403918802,0.7,94464.0,94463.0,0.43440473]
[1746403919907,0.7,94464.0,94463.0,0.64611723]
[1746403921509,0.7,94464.0,94463.0,0.43440473]
[1746403922400,0.9117102,94464.0,94463.0,0.40354472]
[1746403922598,0.7,94464.0,94455.0,0.3608]
[1746403922802,0.2117225,94459.0,94455.0,0.29823129]
[1746403923007,0.3134239,94458.0,94455.0,0.29823129]
[1746403923208,0.9017,94458.0,94455.0,0.29823129]
[1746403923513,0.9017,94458.0,94453.0,0.2117346]
[1746403925613,0.9017,94458.0,94451.0,0.0529348]
[1746403925813,0.8,94458.0,94457.0,0.2117259]
[1746403926113,0.68,94458.0,94457.0,0.2117259]
[1746403926412,0.68,94458.0,94457.0,0.83666269]
[1746403926614,0.68,94458.0,94457.0,1.20016269]
[1746403927007,0.68,94458.0,94457.0,0.5752259]
[1746403927315,0.68,94458.0,94457.0,1.20016269]
[1746403932518,0.68,94458.0,94457.0,0.98843679]
[1746403933026,0.68,94458.0,94457.0,1.20016269]
[1746403935631,0.68,94458.0,94457.0,0.98843679]
[1746403938820,0.68,94458.0,94457.0,1.20016269]
[1746403943323,0.68,94458.0,94457.0,0.98843679]
[1746403944541,0.68,94458.0,94457.0,1.20016269]
[1746403946437,0.2117349,94453.0,94452.0,0.1954]
[1746403946628,0.9117349,94453.0,94452.0,0.1954]
[1746403946828,0.7,94453.0,94452.0,0.1954]
[1746403947130,0.82,94453.0,94441.0,0.3608]
[1746403947328,0.82,94453.0,94442.0,0.81343679]
[1746403947529,0.2117457,94449.0,94442.0,0.81343679]
[1746403947729,0.8617457,94449.0,94443.0,1.01733679]
[1746403947934,0.1801,94448.0,94443.0,1.01733679]
[1746403948129,0.1801,94448.0,94444.0,0.62493679]
[1746403948130,0.8701,94448.0,94444.0,0.62493679]
[1746403948329,0.2117495,94447.0,94444.0,0.62493679]
[1746403948530,0.8817495,94447.0,94445.0,1.01403679]
[1746403948730,0.1801,94446.0,94445.0,0.3891]
[1746403949026,0.7901,94446.0,94445.0,0.3891]
[1746403949331,1.0018506,94446.0,94445.0,0.3891]
[1746403951337,0.7901,94446.0,94434.0,0.3608]
[1746403951538,0.3856,94445.0,94435.0,0.80783679]
[1746403951738,0.2117657,94440.0,94435.0,0.1829]
[1746403952038,0.9317657,94440.0,94435.0,0.80783679]
[1746403952240,0.1943,94439.0,94435.0,0.80783679]
[1746403952441,0.9143,94439.0,94435.0,0.80783679]
[1746403953040,0.211773,94436.0,94435.0,0.1829]
[1746403953240,0.921773,94436.0,94435.0,0.1829]
[1746403954245,1.041773,94436.0,94435.0,0.1829]
[1746403954447,1.041773,94436.0,94435.0,0.3631]
[1746403954842,0.83,94436.0,94435.0,0.3631]
[1746403955241,0.71,94436.0,94435.0,0.3631]
[1746403957248,0.71,94436.0,94435.0,0.98803679]
[1746403957550,0.71,94436.0,94435.0,1.44981199]
[1746403957752,0.71,94436.0,94435.0,1.19981199]
[1746403958142,0.05302,94461.0,94435.0,0.7331]
[1746403958342,0.053,94465.0,94459.0,0.70697267]
[1746403958543,0.673,94465.0,94460.0,0.3862]
[1746403958743,0.673,94465.0,94460.0,0.89107097]
[1746403958943,0.673,94465.0,94461.0,0.50486947]
[1746403959345,0.673,94465.0,94462.0,0.67935267]
[1746403959657,0.673,94465.0,94462.0,0.89106737]
[1746403959949,0.673,94465.0,94464.0,0.2117102]
[1746403960150,0.673,94465.0,94464.0,0.50486287]
[1746403961853,0.673,94465.0,94464.0,0.88306287]
[1746403964046,0.673,94465.0,94464.0,0.67135267]
[1746403964458,0.673,94465.0,94464.0,0.88306287]
[1746403970159,0.62,94465.0,94464.0,0.88306287]
[1746403978058,0.00158902,94490.0,94471.0,0.3608]
[1746403978264,0.66971586,94490.0,94489.0,0.9332542]
[1746403978766,0.7234129,94490.0,94489.0,1.0390862]
[1746403978965,0.7234129,94490.0,94489.0,1.2225862]
[1746403981061,0.8434129,94490.0,94489.0,1.1167542]
[1746403981255,0.8434129,94490.0,94489.0,1.1019]
[1746403981564,0.8434129,94490.0,94489.0,1.3135542]
[1746403982060,0.7234129,94490.0,94489.0,1.3135542]
[1746403983062,0.78971586,94490.0,94489.0,1.3135542]
[1746403984061,0.78971586,94490.0,94489.0,1.4193862]
[1746403984258,0.053,94493.0,94489.0,1.4193862]
[1746403984259,0.0015,94520.0,94489.0,1.2189]
[1746403984462,0.23954361,94543.0,94489.0,1.2189]
[1746403984463,0.04128389,94543.0,94519.0,0.3608]
[1746403984766,0.73389512,94543.0,94542.0,0.3608]
[1746403984965,0.94542842,94543.0,94542.0,0.3608]
[1746403985171,0.85489512,94543.0,94542.0,0.3608]
[1746403985357,0.91568669,94543.0,94542.0,0.3608]
[1746403985564,1.12721999,94543.0,94542.0,0.3608]
[1746403985862,0.91568669,94543.0,94542.0,0.3608]
[1746403986068,0.98244669,94543.0,94542.0,0.3608]
[1746403987862,0.9411628,94543.0,94542.0,0.3608]
[1746403988264,0.8881628,94543.0,94542.0,0.3608]
[1746403991375,0.8214028,94543.0,94542.0,0.3608]
[1746403991676,0.8881628,94543.0,94542.0,0.3608]
[1746403993872,0.8214028,94543.0,94542.0,0.3608]
[1746403994075,0.76779157,94543.0,94542.0,1.0389076]
[1746403994274,0.76779157,94543.0,94542.0,1.2889076]
[1746403994574,0.76779157,94543.0,94542.0,0.9331356]
[1746403994974,0.76779157,94543.0,94542.0,1.2932356]
[1746403995168,0.76779157,94543.0,94542.0,0.9331356]
[1746403995377,0.76879157,94543.0,94542.0,0.9331356]
[1746403997180,0.76879157,94543.0,94533.0,0.3608]
[1746403997380,0.1824,94542.0,94538.0,0.2115426]
[1746403997578,0.8824,94542.0,94538.0,0.2115426]
[1746403997775,0.001,94539.0,94533.0,0.3608]
[1746403998075,0.001,94534.0,94512.0,0.3608]
[1746403998282,0.001,94522.0,94521.0,0.2115826]
[1746403998470,0.601,94522.0,94521.0,0.2115826]
[1746403999282,0.721,94522.0,94521.0,0.2115826]
[1746404004478,0.721,94522.0,94521.0,0.5723826]
[1746404004784,0.72,94522.0,94521.0,0.5723826]
[1746404005379,0.72,94522.0,94521.0,0.7590826]
[1746404006874,0.72,94522.0,94521.0,0.9566826]
[1746404007983,0.72,94522.0,94521.0,1.0624786]
[1746404012187,0.6,94522.0,94521.0,1.0624786]
[1746404013782,0.72,94522.0,94521.0,1.0624786]
[1746404015795,0.01586,94531.0,94530.0,0.2115624]
[1746404016085,0.85586,94531.0,94530.0,0.5723624]
[1746404016293,0.84,94531.0,94530.0,0.5723624]
[1746404016792,0.84,94531.0,94530.0,0.9372624]
[1746404017389,0.84,94531.0,94530.0,1.04304639]
[1746404018080,0.72,94531.0,94530.0,1.04304639]
[1746404018493,0.6380278,94531.0,94530.0,1.04304639]
[1746404022794,0.01586,94540.0,94539.0,0.2115423]
[1746404022987,0.65586,94540.0,94539.0,0.5723423]
[1746404023289,0.76,94540.0,94539.0,0.6781183]
[1746404023792,0.76,94540.0,94539.0,1.0626183]
[1746404024287,0.16,94540.0,94539.0,1.0626183]
[1746404024694,0.72,94540.0,94539.0,1.0626183]
[1746404027185,0.72,94540.0,94539.0,0.9568423]
[1746404031693,0.9197,94540.0,94539.0,0.9568423]
[1746404036290,0.9207,94540.0,94539.0,0.5723423]
[1746404051905,0.9207,94540.0,94539.0,0.9331423]
[1746404053296,0.9197,94540.0,94539.0,0.9331423]
[1746404053499,0.9197,94540.0,94539.0,1.3193423]
[1746404055006,0.72,94540.0,94539.0,1.3193423]
[1746404058708,0.72020938,94540.0,94539.0,1.3193423]
[1746404062411,0.72020938,94540.0,94539.0,0.9331423]
[1746404062911,0.91780938,94540.0,94539.0,0.9331423]
[1746404064413,0.91880938,94540.0,94539.0,0.9331423]
[1746404069717,0.91880938,94540.0,94539.0,0.7216]
[1746404070615,0.91880938,94540.0,94539.0,0.9331423]
[1746404073714,0.10150938,94541.0,94540.0,0.21154]
[1746404074020,0.80150938,94541.0,94540.0,0.21154]
[1746404074209,0.92150938,94541.0,94540.0,0.21154]
[1746404075717,0.92150938,94541.0,94540.0,0.40664]
[1746404081527,0.92150938,94541.0,94540.0,0.76744]
[1746404097631,0.2116027,94512.0,94511.0,0.3608]
[1746404097822,0.2116027,94512.0,94511.0,0.1819]
[1746404097823,0.9508,94512.0,94511.0,0.1819]
[1746404098024,1.056608,94512.0,94511.0,0.1819]
[1746404098227,1.176608,94512.0,94511.0,0.1819]
[1746404098430,0.815808,94512.0,94511.0,0.1819]
[1746404100027,0.71,94512.0,94511.0,0.1819]
[1746404102126,0.12,94512.0,94511.0,0.1819]
[1746404102329,0.75,94512.0,94511.0,0.1819]
[1746404102836,0.1188909,94518.0,94511.0,0.1819]
[1746404103036,0.8388909,94518.0,94511.0,0.1819]
[1746404103336,0.9588909,94518.0,94511.0,0.1819]
[1746404103728,0.71,94518.0,94511.0,0.1819]
[1746404104036,0.9215901,94518.0,94511.0,0.1819]
[1746404104333,1.0415901,94518.0,94511.0,0.1819]
[1746404104538,0.0415901,94518.0,94511.0,0.1819]
[1746404104726,0.6215901,94518.0,94511.0,0.1819]
[1746404105128,0.8331814,94518.0,94511.0,0.1819]
[1746404105431,0.0784271,94520.0,94511.0,0.1819]
[1746404105635,0.002,94518.0,94511.0,0.1819]
[1746404105833,0.2115951,94516.0,94511.0,0.1819]
[1746404106137,0.9515951,94516.0,94511.0,0.1819]
[1746404106341,0.1818,94515.0,94511.0,0.1819]
[1746404106531,0.8018,94515.0,94511.0,0.1819]
[1746404106735,0.62,94515.0,94511.0,0.1819]
[1746404107037,0.1,94515.0,94514.0,0.2115982]
[1746404107227,0.79,94515.0,94513.0,0.3608]
[1746404107425,0.79,94515.0,94514.0,0.3976]
[1746404107643,0.1196,94530.0,94514.0,0.3976]
[1746404107833,0.0528978,94518.0,94514.0,0.198]
[1746404108138,0.002,94516.0,94514.0,0.198]
[1746404108341,0.6986,94516.0,94514.0,0.198]
[1746404108534,0.09,94516.0,94514.0,0.198]
[1746404108741,0.1811,94515.0,94514.0,0.198]
[1746404109041,0.9011,94515.0,94514.0,0.198]
[1746404109231,0.0211,94516.0,94514.0,0.198]
[1746404109431,0.6011,94516.0,94514.0,0.198]
[1746404109832,0.6041,94516.0,94514.0,0.198]
[1746404110140,0.0666,94517.0,94514.0,0.198]
[1746404110342,0.7666,94517.0,94515.0,0.1931]
[1746404110733,0.7666,94517.0,94516.0,0.1967]
[1746404111134,0.9924,94517.0,94516.0,0.1967]
[1746404112141,0.8866,94517.0,94516.0,0.1967]
[1746404112538,1.0846,94517.0,94516.0,0.1967]
[1746404114046,0.0846,94517.0,94516.0,0.1967]
[1746404114239,0.9146,94517.0,94516.0,0.1967]
[1746404114944,0.6,94517.0,94516.0,0.1967]
[1746404115152,0.72,94517.0,94516.0,0.3779]
[1746404115444,0.12,94517.0,94516.0,0.3779]
[1746404115746,0.69,94517.0,94516.0,0.3779]
[1746404116343,0.0666,94520.0,94516.0,0.3779]
[1746404116542,0.016,94517.0,94516.0,0.5914938]
[1746404116846,0.696,94517.0,94516.0,0.5914938]
[1746404117043,0.816,94517.0,94516.0,0.5914938]
[1746404117241,0.211559,94532.0,94516.0,0.5914938]
[1746404117440,0.693,94530.0,94525.0,0.3608]
[1746404117636,0.693,94530.0,94529.0,0.5723647]
[1746404118240,0.813,94530.0,94529.0,0.5723647]
[1746404118440,0.16,94530.0,94529.0,0.5723647]
[1746404118641,0.14,94530.0,94529.0,0.5723647]
[1746404119243,0.5,94530.0,94529.0,0.5723647]
[1746404119846,0.501,94530.0,94529.0,0.5733647]
[1746404124753,0.501,94530.0,94529.0,0.3618]
[1746404124957,0.501,94530.0,94529.0,0.5733647]
[1746404125246,0.62,94530.0,94529.0,0.5733647]
[1746404128051,0.62,94530.0,94529.0,0.3618]
[1746404129154,1.0068,94530.0,94529.0,0.3618]
[1746404129748,1.2183624,94530.0,94529.0,0.3618]
[1746404129949,1.3241504,94530.0,94529.0,0.3618]
[1746404130255,1.3241504,94530.0,94529.0,0.001]
[1746404132258,1.112588,94530.0,94529.0,0.001]
[1746404133752,0.8156,94530.0,94529.0,0.001]
[1746404137561,1.0008,94530.0,94529.0,0.001]
[1746404137762,1.192,94530.0,94529.0,0.001]
[1746404140062,1.0008,94530.0,94529.0,0.001]
[1746404144060,1.2123624,94530.0,94529.0,0.001]
[1746404145260,1.0008,94530.0,94529.0,0.001]
[1746404146166,1.1899,94530.0,94529.0,0.001]
[1746404146660,1.4014624,94530.0,94529.0,0.001]
[1746404152372,1.1899,94530.0,94529.0,0.001]
[1746404152869,1.0008,94530.0,94529.0,0.001]
[1746404153056,0.62,94530.0,94529.0,0.001]
[1746404153263,0.62,94530.0,94529.0,0.2125647]
[1746404153762,0.62,94530.0,94529.0,0.001]
[1746404154166,0.62,94530.0,94529.0,0.5595]
[1746404156674,0.01586,94537.0,94536.0,0.211549]
[1746404156970,0.30873757,94564.0,94550.0,0.2115177]
[1746404157166,0.58,94551.0,94550.0,0.5723177]
[1746404157569,0.58,94551.0,94550.0,0.3608]
[1746404157765,0.58,94551.0,94550.0,0.7505]
[1746404158160,0.7,94551.0,94550.0,0.7505]
[1746404158362,0.72762695,94551.0,94550.0,0.7505]
[1746404158772,0.7356161,94551.0,94550.0,0.7505]
[1746404160476,0.7356161,94551.0,94550.0,0.7515]
[1746404164877,0.7356161,94551.0,94550.0,0.3907]
[1746404165177,0.7356161,94551.0,94550.0,0.7515]
[1746404165984,0.7356161,94551.0,94550.0,0.9630177]
[1746404166381,0.7356161,94551.0,94550.0,0.7515]
[1746404167881,0.7356161,94551.0,94550.0,0.9630177]
[1746404168977,0.7356161,94551.0,94550.0,0.7515]
[1746404169870,0.9165161,94551.0,94550.0,0.7515]
[1746404170774,0.2115359,94542.0,94536.0,0.07528251]
[1746404170973,0.3662,94541.0,94536.0,0.07528251]
[1746404171180,0.9962,94541.0,94536.0,0.07528251]
[1746404171574,0.63,94541.0,94536.0,0.07528251]
[1746404171773,0.8297,94541.0,94536.0,0.07628251]
[1746404172183,0.9497,94541.0,94536.0,0.07628251]
[1746404172573,0.9507,94541.0,94536.0,0.07628251]
[1746404175981,0.9507,94541.0,94537.0,0.3902]
[1746404176378,0.2115445,94538.0,94537.0,0.1953]
[1746404176583,0.7915445,94538.0,94537.0,0.1953]
[1746404177182,1.2888445,94538.0,94537.0,0.1953]
[1746404177985,1.2888445,94538.0,94537.0,0.1963]
[1746404178786,1.0923,94538.0,94537.0,0.1963]
[1746404179387,1.2793,94538.0,94537.0,0.1963]
[1746404181688,0.9079,94538.0,94537.0,0.4078468]
[1746404184890,0.715,94538.0,94537.0,0.4078468]
[1746404188182,0.595,94538.0,94537.0,0.4078468]
[1746404192094,0.715,94538.0,94537.0,0.4078468]
[1746404192297,0.225,94538.0,94537.0,0.5136268]
[1746404192597,0.375,94538.0,94537.0,0.5136268]
[1746404192791,0.775,94538.0,94537.0,0.5136268]
[1746404193190,0.655,94538.0,94537.0,0.5136268]
[1746404198301,0.00798915,94551.0,94550.0,0.2115177]
[1746404198503,0.02,94551.0,94550.0,0.9995177]
[1746404198804,0.02,94551.0,94550.0,1.4866817]
[1746404199296,0.001,94566.0,94552.0,0.0528778]
[1746404199491,0.681,94566.0,94565.0,0.5722841]
[1746404199687,0.681,94566.0,94565.0,0.6386841]
[1746404199894,0.70492506,94566.0,94565.0,0.7444321]
[1746404200100,0.70492506,94566.0,94565.0,1.14140914]
[1746404200299,0.68892802,94566.0,94565.0,1.1258321]
[1746404200700,0.26615956,94582.0,94581.0,0.2114483]
[1746404201000,0.92615956,94582.0,94581.0,0.9330483]
[1746404201202,1.04615956,94582.0,94581.0,0.9330483]
[1746404201700,1.06973956,94582.0,94581.0,1.3005483]
[1746404202593,1.06973956,94582.0,94581.0,1.3015483]
[1746404202794,0.80358,94582.0,94581.0,1.3015483]
[1746404203601,0.80358,94582.0,94581.0,1.3005483]
[1746404204503,0.3608,94640.0,94581.0,1.624828]
[1746404204696,0.3815,94625.0,94624.0,0.5721522]
[1746404204899,0.5769,94625.0,94624.0,0.3608]
[1746404205094,0.76582282,94625.0,94624.0,0.3608]
[1746404205409,1.25077579,94625.0,94624.0,0.4808]
[1746404205596,1.25077579,94625.0,94605.0,0.3608]
[1746404205597,0.21505271,94610.0,94605.0,0.4136484]
[1746404205797,0.3764,94609.0,94605.0,0.3608]
[1746404206002,0.2113915,94607.0,94596.0,0.5722147]
[1746404206199,0.3764,94606.0,94596.0,0.3608]
[1746404206404,0.2113971,94604.0,94596.0,0.3608]
[1746404206605,0.3764,94603.0,94596.0,0.3608]
[1746404206810,0.9564,94603.0,94596.0,0.3608]
[1746404207109,0.0528529,94598.0,94586.0,0.2114367]
[1746404207295,0.3885,94597.0,94590.0,0.0528568]
[1746404207499,1.0985,94597.0,94591.0,0.2114249]
[1746404207907,1.0985,94597.0,94593.0,0.2114214]
[1746404208198,1.0985,94597.0,94594.0,0.2114193]
[1746404208199,1.2185,94597.0,94594.0,0.2114193]
[1746404208400,1.2185,94597.0,94593.0,0.2114209]
[1746404208601,1.2185,94597.0,94595.0,0.3608]
[1746404208807,1.2185,94597.0,94596.0,0.2114148]
[1746404209000,1.2205,94597.0,94596.0,0.2114148]
[1746404209402,1.2185,94597.0,94596.0,0.2114148]
[1746404209598,1.2205,94597.0,94596.0,0.2114148]
[1746404213305,1.0274,94597.0,94596.0,0.2114148]
[1746404214009,1.0274,94597.0,94596.0,0.5813148]
[1746404214501,1.0254,94597.0,94596.0,0.5813148]
[1746404214701,1.0274,94597.0,94596.0,0.5813148]
[1746404216111,1.0274,94597.0,94595.0,0.3608]
[1746404216311,0.1954,94596.0,94595.0,0.572217]
[1746404216506,0.2114416,94584.0,94576.0,0.1873]
[1746404216806,0.8814416,94584.0,94570.0,0.1873]
[1746404217002,0.67,94584.0,94565.0,0.57333977]
[1746404217207,0.2114662,94573.0,94565.0,0.36185747]
[1746404217410,0.8814662,94573.0,94565.0,0.36185747]
[1746404218210,0.79,94573.0,94565.0,0.57334037]
[1746404218508,1.0014662,94573.0,94572.0,0.00458608]
[1746404219012,0.2114819,94566.0,94565.0,0.00105747]
[1746404219314,0.8214819,94566.0,94565.0,0.00105747]
[1746404220103,1.1306819,94566.0,94565.0,0.00105747]
[1746404220912,1.1306819,94566.0,94565.0,0.00305747]
[1746404221618,0.9192,94566.0,94565.0,0.00305747]
[1746404221820,0.92733222,94566.0,94565.0,0.00305747]
[1746404222613,0.92733222,94566.0,94565.0,0.21454157]
[1746404224313,0.67813222,94566.0,94565.0,0.32028957]
[1746404226017,0.88961412,94566.0,94565.0,0.00305747]
[1746404226219,0.79813222,94566.0,94565.0,0.21454157]
[1746404229017,0.79813222,94566.0,94565.0,0.59894157]
[1746404229217,0.67813222,94566.0,94565.0,0.59894157]
[1746404230015,0.04,94566.0,94565.0,0.70468957]
[1746404230406,0.04,94566.0,94565.0,0.77100957]
[1746404231421,0.04,94566.0,94565.0,0.78648785]
[1746404232122,0.184,94577.0,94576.0,0.2114595]
[1746404232331,0.0015,94590.0,94577.0,0.0528641]
[1746404232620,0.4615,94590.0,94589.0,0.5722305]
[1746404233227,0.5815,94590.0,94589.0,0.5722305]
[1746404233615,0.58961982,94590.0,94589.0,0.7621305]
[1746404234323,0.59061982,94590.0,94589.0,0.7621305]
[1746404235418,0.59261982,94590.0,94589.0,0.7621305]
[1746404235822,0.59261982,94590.0,94589.0,0.5722305]
[1746404236829,0.59261982,94590.0,94589.0,0.7706305]
[1746404237023,0.59161982,94590.0,94589.0,0.7706305]
[1746404237527,0.58961982,94590.0,94589.0,0.7706305]
[1746404237827,0.59161982,94590.0,94589.0,0.7706305]
[1746404238126,0.59061982,94590.0,94589.0,0.7706305]
[1746404238328,0.59061982,94590.0,94589.0,0.5722305]
[1746404241527,0.59061982,94590.0,94589.0,0.9635305]
[1746404241935,0.13061982,94590.0,94589.0,0.9635305]
[1746404242231,0.33061982,94590.0,94589.0,0.9635305]
[1746404242421,0.01061982,94590.0,94589.0,0.9635305]
[1746404242621,0.60061982,94590.0,94589.0,0.9635305]
[1746404243344,0.72061982,94590.0,94589.0,1.0692505]
[1746404243739,0.71961982,94590.0,94589.0,1.0692505]
[1746404244743,0.71961982,94590.0,94589.0,1.0702505]
[1746404244943,0.1615,94590.0,94589.0,1.0702505]
[1746404245134,0.0415,94590.0,94589.0,1.0702505]
[1746404245535,0.1849,94601.0,94600.0,0.2114059]
[1746404245744,0.9049,94601.0,94600.0,0.5722059]
[1746404246440,0.1998,94613.0,94606.0,0.052848]
[1746404246639,0.1849,94612.0,94611.0,0.2113813]
[1746404246842,0.8549,94612.0,94611.0,0.5721813]
[1746404247145,0.9749,94612.0,94611.0,0.5721813]
[1746404247644,0.9779,94612.0,94611.0,0.5721813]
[1746404248144,0.9749,94612.0,94611.0,0.5721813]
[1746404248445,0.9749,94612.0,94611.0,0.3608]
[1746404248446,0.9830087,94612.0,94611.0,0.3608]
[1746404248740,0.9830087,94612.0,94611.0,0.5721813]
[1746404250742,1.1943878,94612.0,94611.0,0.3608]
[1746404251949,0.2113908,94607.0,94601.0,0.91065566]
[1746404252152,0.3839,94606.0,94602.0,0.2114011]
[1746404252444,1.0539,94606.0,94605.0,0.5721947]
[1746404252837,1.0539,94606.0,94605.0,0.3608]
[1746404253238,1.1739,94606.0,94605.0,0.3608]
[1746404253640,0.2113992,94603.0,94602.0,0.001]
[1746404253839,0.719,94603.0,94599.0,0.211408]
[1746404254040,0.3843,94602.0,94599.0,0.211408]
[1746404254249,1.0143,94602.0,94599.0,0.211408]
[1746404255148,1.1343,94602.0,94599.0,0.211408]
[1746404255943,1.1343,94602.0,94599.0,0.213408]
[1746404256644,1.1343,94602.0,94599.0,0.211408]
[1746404257246,1.1343,94602.0,94601.0,0.5722036]
[1746404259246,1.1363,94602.0,94601.0,0.5722036]
[1746404260852,1.1353,94602.0,94601.0,0.5722036]
[1746404262939,1.1343,94602.0,94601.0,0.5722036]
[1746404263150,1.1353,94602.0,94601.0,0.5722036]
[1746404263549,1.3467014,94602.0,94601.0,0.5722036]
[1746404263750,1.1353,94602.0,94601.0,0.5722036]
[1746404264246,1.3467014,94602.0,94601.0,0.3608]
[1746404264955,1.1353,94602.0,94601.0,0.3608]
[1746404265145,1.1353,94602.0,94601.0,0.5722036]
[1746404265750,1.1353,94602.0,94601.0,0.3608]
[1746404265951,1.3467014,94602.0,94601.0,0.3608]
[1746404266151,1.1353,94602.0,94601.0,0.3608]
[1746404266455,1.3467014,94602.0,94601.0,0.3608]
[1746404267454,1.1881505,94602.0,94593.0,0.2114207]
[1746404267645,1.1353,94602.0,94591.0,0.3608]
[1746404267845,1.1353,94602.0,94595.0,0.052854]
[1746404268245,1.1353,94602.0,94598.0,0.2114095]
[1746404268646,1.1353,94602.0,94600.0,0.2114051]
[1746404268850,1.1353,94602.0,94599.0,0.2114067]
[1746404269051,1.1353,94602.0,94598.0,0.0528525]
[1746404269052,1.1353,94602.0,94600.0,0.2114043]
[1746404269256,1.1343,94602.0,94600.0,0.2114043]
[1746404270047,1.1343,94602.0,94601.0,0.5722036]
[1746404270248,0.4175,94602.0,94601.0,0.5722036]